bitfinex/quotes_BTCUSD_20241110
["timestamp","ask_amount","ask_price","bid_price","bid_amount"]
[1731260918552,0.08752759,80215.0,80214.0,0.49017888]
[1731260918985,0.08752759,80215.0,80214.0,0.60850821]
[1731260919179,0.08752759,80215.0,80214.0,0.61612109]
[1731260920819,0.05780422,80221.0,80220.0,0.009366]
[1731260921245,0.05780422,80221.0,80220.0,0.393336]
[1731260921520,0.05780422,80221.0,80220.0,0.398336]
[1731260921731,0.05780422,80221.0,80220.0,0.393336]
[1731260922300,6.62111019,80225.0,80220.0,0.393336]
[1731260922508,6.62111019,80225.0,80223.0,0.005]
[1731260922694,6.62111019,80225.0,80224.0,0.38395]
[1731260923311,6.7470524,80225.0,80224.0,0.38395]
[1731260923956,6.7555891,80225.0,80224.0,0.38395]
[1731260925106,6.80077781,80225.0,80224.0,0.38395]
[1731260925494,6.90141181,80225.0,80224.0,0.38395]
[1731260925725,6.90341181,80225.0,80224.0,0.38395]
[1731260926493,6.90425181,80225.0,80224.0,0.38395]
[1731260927084,7.05190081,80225.0,80224.0,0.38395]
[1731260927318,7.09090081,80225.0,80224.0,0.38395]
[1731260927509,6.96625181,80225.0,80224.0,0.38395]
[1731260927710,7.09090081,80225.0,80224.0,0.38395]
[1731260927992,7.09090081,80225.0,80214.0,0.00168]
[1731260927993,0.002634,80215.0,80214.0,0.00168]
[1731260928195,0.51564559,80215.0,80214.0,0.00168]
[1731260928393,0.69656105,80215.0,80214.0,0.00168]
[1731260928604,0.45746001,80215.0,80214.0,0.00168]
[1731260928842,0.51482653,80215.0,80214.0,0.00168]
[1731260929043,0.47963123,80215.0,80214.0,0.00168]
[1731260929314,0.60429523,80215.0,80214.0,0.00168]
[1731260930684,0.59929523,80215.0,80214.0,0.00168]
[1731260931132,0.45163123,80215.0,80214.0,0.00168]
[1731260931336,0.27982767,80215.0,80214.0,0.00168]
[1731260932942,0.31583753,80215.0,80214.0,0.00168]
[1731260933902,0.37706754,80215.0,80214.0,0.00168]
[1731260934510,0.50173154,80215.0,80214.0,0.00168]
[1731260934837,0.43681044,80215.0,80214.0,0.00168]
[1731260935427,0.46310453,80215.0,80214.0,0.00168]
[1731260935626,0.249339,80212.0,80206.0,0.00168]
[1731260935834,0.42074577,80207.0,80187.0,0.18872958]
[1731260936158,0.0453,80211.0,80196.0,0.18704758]
[1731260936159,0.37363521,80197.0,80196.0,0.18704758]
[1731260936363,0.1,80193.0,80187.0,0.18872958]
[1731260936550,0.17180356,80188.0,80187.0,0.18872958]
[1731260936810,0.0462367,80188.0,80187.0,0.18872958]
[1731260937014,0.0462367,80188.0,80187.0,0.001682]
[1731260937015,0.00816801,80188.0,80187.0,0.001682]
[1731260937431,0.12594221,80188.0,80187.0,0.001682]
[1731260937597,0.13411022,80188.0,80187.0,0.001682]
[1731260937806,0.18114401,80188.0,80187.0,0.001682]
[1731260940913,0.20706656,80188.0,80187.0,0.001682]
[1731260941147,0.47887012,80188.0,80187.0,0.001682]
[1731260941952,0.41997012,80188.0,80187.0,0.001682]
[1731260943365,0.24816656,80188.0,80187.0,0.001682]
[1731260944057,0.20113277,80188.0,80187.0,0.001682]
[1731260945056,0.03409056,80188.0,80187.0,0.001682]
[1731260945479,0.00816801,80188.0,80187.0,0.146982]
[1731260945756,0.18704758,80207.0,80204.0,0.005]
[1731260945960,0.18704758,80207.0,80205.0,0.0492]
[1731260946148,6.62195019,80225.0,80205.0,0.0492]
[1731260946149,0.00833532,80206.0,80205.0,0.0542]
[1731260946394,0.00833532,80206.0,80205.0,0.0592]
[1731260946569,6.62195019,80225.0,80207.0,0.005]
[1731260946770,0.18704758,80213.0,80207.0,0.005]
[1731260946971,0.13440333,80219.0,80207.0,0.005]
[1731260947235,0.00839338,80212.0,80207.0,0.005]
[1731260947370,0.12594221,80219.0,80207.0,0.005]
[1731260947887,0.00845144,80218.0,80207.0,0.005]
[1731260948374,0.00845144,80218.0,80215.0,0.005]
[1731260948577,0.00845144,80218.0,80205.0,0.0492]
[1731260948578,0.00845144,80218.0,80217.0,0.01]
[1731260948775,6.62195019,80225.0,80219.0,0.005]
[1731260949209,6.62195019,80225.0,80219.0,0.0842]
[1731260950311,0.18704758,80224.0,80219.0,0.0792]
[1731260950541,3.12594221,80220.0,80208.0,0.0792]
[1731260950697,0.12594221,80219.0,80208.0,0.0792]
[1731260951589,3.0,80220.0,80208.0,0.0792]
[1731260951807,3.0,80220.0,80219.0,0.19204758]
[1731260951948,3.0,80220.0,80219.0,0.26524221]
[1731260952160,3.0,80220.0,80219.0,0.30851756]
[1731260952509,3.0,80220.0,80219.0,0.26724221]
[1731260953099,3.0,80220.0,80219.0,0.27785509]
[1731260953297,3.0,80220.0,80219.0,0.26524221]
[1731260953624,3.0,80220.0,80219.0,0.65182509]
[1731260953796,3.0,80220.0,80219.0,0.65382509]
[1731260954060,3.0,80220.0,80219.0,0.63921221]
[1731260955254,3.0,80220.0,80219.0,0.51327]
[1731260956446,3.0,80220.0,80219.0,0.50327]
[1731260958783,3.0,80220.0,80219.0,0.51027]
[1731260958979,3.0,80220.0,80219.0,0.65182509]
[1731260959206,3.00849018,80220.0,80219.0,0.82541642]
[1731260959819,3.00849018,80220.0,80219.0,0.65382509]
[1731260959820,2.98349018,80220.0,80219.0,0.65382509]
[1731260960785,2.98349018,80220.0,80219.0,0.66050509]
[1731260960938,2.98433018,80220.0,80219.0,0.66050509]
[1731260961790,2.98433018,80220.0,80219.0,0.65550509]
[1731260961950,2.98433018,80220.0,80219.0,0.66050509]
[1731260962156,2.98433018,80220.0,80219.0,0.65550509]
[1731260963383,2.98433018,80220.0,80219.0,0.64289221]
[1731260964184,2.98433018,80220.0,80219.0,0.65550509]
[1731260964356,2.98373018,80220.0,80219.0,0.65550509]
[1731260965323,2.98373018,80220.0,80219.0,0.64289221]
[1731260965561,2.98373018,80220.0,80219.0,0.65550509]
[1731260965902,2.98373018,80220.0,80219.0,0.64089221]
[1731260966401,2.98373018,80220.0,80219.0,0.37565]
[1731260966592,2.98373018,80220.0,80219.0,0.38065]
[1731260966771,2.98373018,80220.0,80219.0,0.38565]
[1731260967098,2.98373018,80220.0,80219.0,0.39065]
[1731260967639,2.98373018,80220.0,80219.0,0.51659221]
[1731260967854,2.85563018,80220.0,80219.0,0.67050509]
[1731260969788,6.62195019,80225.0,80224.0,0.2111]
[1731260969901,6.62195019,80225.0,80224.0,0.50863354]
[1731260970108,6.41575019,80225.0,80224.0,0.69283775]
[1731260970305,6.16805019,80225.0,80224.0,0.81609642]
[1731260970725,6.16805019,80225.0,80224.0,0.84530857]
[1731260970941,6.16805019,80225.0,80224.0,0.81609642]
[1731260971662,5.61024008,80225.0,80224.0,0.98768775]
[1731260971896,5.61024008,80225.0,80224.0,0.84530857]
[1731260972093,2.61024008,80225.0,80224.0,0.84530857]
[1731260972252,2.61024008,80225.0,80224.0,0.81609642]
[1731260972664,2.61024008,80225.0,80224.0,1.01591594]
[1731260972874,2.61024008,80225.0,80224.0,0.84432461]
[1731260973296,2.61018008,80225.0,80224.0,0.84432461]
[1731260973516,2.61018008,80225.0,80224.0,1.01591594]
[1731260973776,2.61018008,80225.0,80224.0,1.00330306]
[1731260973777,2.46552921,80225.0,80224.0,1.00330306]
[1731260974271,2.46552921,80225.0,80224.0,0.80348354]
[1731260974725,1.4594404,80225.0,80224.0,6.05330306]
[1731260975076,1.15521994,80225.0,80224.0,6.11769106]
[1731260975228,1.10421994,80225.0,80224.0,6.11969106]
[1731260975430,1.09201994,80225.0,80224.0,6.11969106]
[1731260975682,0.74467429,80225.0,80224.0,6.1067206]
[1731260975896,0.67061418,80225.0,80224.0,6.12633697]
[1731260976102,0.44745311,80225.0,80224.0,6.02888735]
[1731260976331,0.06257682,80234.0,80233.0,0.034]
[1731260976539,6.51012397,80235.0,80234.0,0.134]
[1731260976727,6.42122397,80235.0,80234.0,5.35559133]
[1731260976894,6.42122397,80235.0,80234.0,5.92932085]
[1731260977951,5.79941077,80235.0,80234.0,5.92932085]
[1731260978095,5.79941077,80235.0,80234.0,5.94370885]
[1731260978319,4.19486129,80235.0,80234.0,6.03123137]
[1731260978517,3.68433821,80235.0,80234.0,5.97880837]
[1731260978727,3.01244501,80235.0,80234.0,6.25846505]
[1731260979005,3.01244501,80235.0,80234.0,6.22336553]
[1731260979006,2.34094385,80235.0,80234.0,6.22336553]
[1731260979328,1.71364531,80235.0,80234.0,6.19513734]
[1731260979502,1.71364531,80235.0,80234.0,6.32107955]
[1731260979643,1.7017175,80235.0,80234.0,6.32107955]
[1731260980166,1.7017175,80235.0,80234.0,6.29542287]
[1731260980362,1.7014762,80235.0,80234.0,6.29542287]
[1731260980706,1.65784119,80235.0,80234.0,6.29542287]
[1731260981470,0.9096414,80235.0,80234.0,6.29542287]
[1731260981667,0.9096414,80235.0,80234.0,6.38842287]
[1731260981874,0.85061296,80235.0,80234.0,6.38842287]
[1731260982290,0.85061296,80235.0,80234.0,6.41242908]
[1731260982672,0.85061296,80235.0,80234.0,6.43164265]
[1731260983085,0.85061296,80235.0,80234.0,6.10244354]
[1731260983295,0.85061296,80235.0,80234.0,2.58444354]
[1731260983509,0.85061296,80235.0,80234.0,1.06644354]
[1731260983713,0.85061296,80235.0,80234.0,1.28404108]
[1731260983911,0.85061296,80235.0,80234.0,1.11044975]
[1731260984167,0.85061296,80235.0,80234.0,1.30728107]
[1731260984414,0.85061296,80235.0,80234.0,1.28204108]
[1731260984639,0.85061296,80235.0,80234.0,1.28404108]
[1731260984777,0.85061296,80235.0,80234.0,1.54456669]
[1731260984988,0.84881978,80235.0,80234.0,1.38404108]
[1731260985188,0.8269188,80235.0,80234.0,1.21044975]
[1731260985414,0.8269188,80235.0,80234.0,1.37301736]
[1731260985657,0.8269188,80235.0,80234.0,1.21044975]
[1731260985824,0.8277588,80235.0,80234.0,1.54260869]
[1731260986038,0.8277588,80235.0,80234.0,1.37095881]
[1731260986404,0.8277588,80235.0,80234.0,1.24195881]
[1731260986753,0.8277588,80235.0,80234.0,1.05744354]
[1731260986949,0.8277588,80235.0,80234.0,1.08144975]
[1731260987183,0.8277588,80235.0,80234.0,1.08344975]
[1731260987308,0.8277588,80235.0,80234.0,1.25504108]
[1731260987731,0.8277588,80235.0,80234.0,1.05744354]
[1731260987925,0.8277588,80235.0,80234.0,1.08478148]
[1731260988360,0.8276988,80235.0,80234.0,1.08478148]
[1731260988566,0.82767994,80235.0,80234.0,1.08478148]
[1731260988787,0.82767994,80235.0,80234.0,1.08678148]
[1731260989197,0.82761994,80235.0,80234.0,1.08678148]
[1731260989978,0.82761994,80235.0,80234.0,1.08578148]
[1731260990183,0.82761994,80235.0,80234.0,1.08478148]
[1731260990445,0.82761994,80235.0,80234.0,1.08578148]
[1731260990689,0.82761994,80235.0,80234.0,1.08678148]
[1731260991114,0.82761994,80235.0,80234.0,1.05744354]
[1731260991320,0.82761994,80235.0,80234.0,1.08478148]
[1731260991865,0.82761994,80235.0,80234.0,1.20717192]
[1731260992086,0.82761994,80235.0,80234.0,0.82878148]
[1731260992294,0.82761994,80235.0,80234.0,0.73078148]
[1731260993537,0.82761994,80235.0,80234.0,0.83078148]
[1731260996341,0.82761994,80235.0,80234.0,0.83278148]
[1731260997123,0.82761994,80235.0,80234.0,0.83078148]
[1731260997729,0.82761994,80235.0,80234.0,0.83278148]
[1731260998348,0.82761994,80235.0,80234.0,0.83446148]
[1731260999199,0.82761994,80235.0,80234.0,0.83246148]
[1731260999837,0.82761994,80235.0,80234.0,0.95530356]
[1731261000257,0.82761994,80235.0,80234.0,0.63353221]
[1731261000463,0.82761994,80235.0,80234.0,0.81856582]
[1731261000911,0.82761994,80235.0,80234.0,0.82056582]
[1731261001121,0.82761994,80235.0,80234.0,0.81856582]
[1731261001324,0.82761994,80235.0,80234.0,0.76981657]
[1731261001533,0.82761994,80235.0,80234.0,0.74981657]
[1731261001732,0.82761994,80235.0,80234.0,0.64497449]
[1731261001953,0.95461994,80235.0,80234.0,0.52853221]
[1731261002375,0.95461994,80235.0,80234.0,0.53353221]
[1731261003273,0.95461994,80235.0,80234.0,0.50059]
[1731261003415,0.95461994,80235.0,80234.0,0.38759]
[1731261003613,0.95461994,80235.0,80234.0,0.39759]
[1731261003821,0.95461994,80235.0,80234.0,0.39059]
[1731261004254,0.95461994,80235.0,80234.0,0.39259]
[1731261004461,0.95461994,80235.0,80234.0,0.39059]
[1731261004888,0.95461994,80235.0,80234.0,0.4989146]
[1731261005096,0.95461994,80235.0,80234.0,0.4969146]
[1731261005307,0.95461994,80235.0,80234.0,0.65851102]
[1731261005512,0.95461994,80235.0,80234.0,0.4969146]
[1731261005731,0.95461994,80235.0,80234.0,0.49259]
[1731261006376,0.95461994,80235.0,80234.0,0.00269775]
[1731261006637,0.95461994,80235.0,80234.0,0.00769775]
[1731261007451,0.95461994,80235.0,80234.0,0.38159775]
[1731261007771,0.95461994,80235.0,80234.0,0.41956631]
[1731261007903,0.95461994,80235.0,80234.0,0.51756631]
[1731261008102,0.95461994,80235.0,80234.0,0.49359775]
[1731261008329,0.95461994,80235.0,80234.0,0.25349775]
[1731261008558,0.95461994,80235.0,80234.0,0.24849775]
[1731261008930,0.95461994,80235.0,80234.0,0.25349775]
[1731261010827,0.95461994,80235.0,80234.0,0.25517775]
[1731261011560,1.08056215,80235.0,80234.0,0.11938]
[1731261011789,1.08056215,80235.0,80224.0,0.05168]
[1731261011986,0.17159133,80229.0,80225.0,0.15584758]
[1731261012185,0.12594221,80228.0,80225.0,0.15584758]
[1731261012916,0.12594221,80228.0,80216.0,0.005]
[1731261012917,0.0087,80227.0,80216.0,0.005]
[1731261013129,0.17304221,80226.0,80216.0,0.005]
[1731261013760,0.17304221,80226.0,80214.0,0.005]
[1731261014581,0.17304221,80226.0,80215.0,0.005]
[1731261015836,0.17534446,80226.0,80211.0,0.005]
[1731261016054,0.17534446,80226.0,80213.0,0.005]
[1731261016230,0.17534446,80226.0,80209.0,0.00269775]
[1731261016231,0.00230225,80220.0,80204.0,0.005]
[1731261016430,0.12594221,80220.0,80210.0,0.005]
[1731261016629,0.12594221,80220.0,80207.0,0.00269775]
[1731261016976,0.12594221,80220.0,80210.0,0.005]
[1731261017746,0.15182514,80220.0,80210.0,0.005]
[1731261020361,0.12594221,80220.0,80211.0,0.00269775]
[1731261020563,0.0087,80227.0,80223.0,0.00269775]
[1731261020770,0.02572347,80226.0,80223.0,0.00269775]
[1731261020917,0.0087,80227.0,80223.0,0.00269775]
[1731261020918,0.0087,80227.0,80224.0,0.37395]
[1731261021329,0.02633525,80230.0,80229.0,0.005]
[1731261021525,0.82761994,80235.0,80229.0,0.00769775]
[1731261021730,0.82761994,80235.0,80234.0,0.00769775]
[1731261021933,0.82761994,80235.0,80234.0,0.00969775]
[1731261022135,0.82761994,80235.0,80234.0,0.38160775]
[1731261023217,0.82761994,80235.0,80234.0,0.38660775]
[1731261023440,0.82761994,80235.0,80234.0,0.48860775]
[1731261023844,0.82761994,80235.0,80234.0,0.48660775]
[1731261024052,0.82761994,80235.0,80234.0,0.48860775]
[1731261024468,0.82761994,80235.0,80234.0,0.54130775]
[1731261026795,0.82761994,80235.0,80234.0,0.82846335]
[1731261027335,0.82761994,80235.0,80234.0,0.66724996]
[1731261030440,0.82761994,80235.0,80234.0,0.71703796]
[1731261031995,0.82761994,80235.0,80234.0,0.54130775]
[1731261033457,0.00012,80258.0,80244.0,0.01]
[1731261033458,6.54140951,80245.0,80244.0,0.01]
[1731261033865,6.54140951,80245.0,80244.0,0.38386]
[1731261034515,6.54140951,80245.0,80244.0,0.38586]
[1731261034954,6.54140951,80245.0,80244.0,0.38386]
[1731261035170,6.54140951,80245.0,80244.0,0.37886]
[1731261035321,6.54140951,80245.0,80244.0,0.37386]
[1731261035527,6.54140951,80245.0,80244.0,0.37886]
[1731261037334,6.53480951,80245.0,80244.0,0.37886]
[1731261038892,6.53480951,80245.0,80244.0,0.44036]
[1731261039095,6.53480951,80245.0,80244.0,0.66630221]
[1731261039316,6.53480951,80245.0,80244.0,0.76540577]
[1731261039523,6.53480951,80245.0,80244.0,0.80403915]
[1731261039770,5.7207994,80245.0,80244.0,0.80603915]
[1731261039939,5.7207994,80245.0,80244.0,0.80403915]
[1731261040355,5.6426994,80245.0,80244.0,0.80403915]
[1731261040557,5.5926994,80245.0,80244.0,0.77810933]
[1731261040776,5.4645994,80245.0,80244.0,0.78010933]
[1731261041163,5.3364994,80245.0,80244.0,0.78010933]
[1731261042162,5.3364994,80245.0,80244.0,0.77810933]
[1731261042387,5.2083994,80245.0,80244.0,0.8452542]
[1731261042594,5.2083994,80245.0,80244.0,0.68360933]
[1731261043235,5.20086383,80245.0,80244.0,0.68360933]
[1731261043453,5.20086383,80245.0,80244.0,0.84329492]
[1731261043679,5.19455517,80245.0,80244.0,0.68360933]
[1731261044048,5.19455517,80245.0,80244.0,0.84524896]
[1731261044237,5.19455517,80245.0,80244.0,0.68160933]
[1731261044668,5.19455517,80245.0,80244.0,0.68360933]
[1731261044895,5.19455517,80245.0,80244.0,0.65220933]
[1731261045104,5.19455517,80245.0,80244.0,1.67479585]
[1731261045105,4.78388408,80245.0,80244.0,1.67479585]
[1731261045314,4.58972079,80245.0,80244.0,1.48774827]
[1731261045518,4.58972079,80245.0,80244.0,1.29079433]
[1731261045519,4.53987279,80245.0,80244.0,1.29079433]
[1731261045690,4.53987279,80245.0,80244.0,0.6949447]
[1731261046476,4.53975471,80245.0,80244.0,0.6949447]
[1731261047475,4.53975471,80245.0,80244.0,0.65420933]
[1731261047679,4.53975471,80245.0,80244.0,0.55220933]
[1731261048093,4.53975471,80245.0,80244.0,0.55420933]
[1731261048704,4.53975471,80245.0,80244.0,0.72580066]
[1731261048930,4.53969471,80245.0,80244.0,0.82580066]
[1731261049132,4.53969471,80245.0,80244.0,0.65420933]
[1731261050358,4.52830127,80245.0,80244.0,0.65420933]
[1731261052213,4.52830127,80245.0,80244.0,0.64920933]
[1731261052393,4.52830127,80245.0,80244.0,0.65420933]
[1731261053045,4.52830127,80245.0,80244.0,0.65020933]
[1731261053284,4.52830127,80245.0,80244.0,0.65420933]
[1731261053454,4.52830127,80245.0,80244.0,2.30876966]
[1731261053873,4.52830127,80245.0,80244.0,2.30476966]
[1731261054105,4.52830127,80245.0,80244.0,2.30876966]
[1731261054333,4.52830127,80245.0,80244.0,2.30476966]
[1731261054884,4.52830127,80245.0,80244.0,2.30876966]
[1731261055058,4.51862271,80245.0,80244.0,2.30876966]
[1731261055253,0.00012,80258.0,80244.0,2.30876966]
[1731261055254,0.00012,80258.0,80246.0,0.029]
[1731261055481,0.00012,80258.0,80246.0,1.71340821]
[1731261055744,0.00833306,80247.0,80246.0,2.08725821]
[1731261055935,0.00012,80258.0,80249.0,0.029]
[1731261056138,0.00012,80258.0,80249.0,0.25494221]
[1731261056431,0.00012,80258.0,80249.0,0.62878221]
[1731261056628,0.01440972,80250.0,80249.0,5.86582979]
[1731261056833,0.01440972,80250.0,80249.0,5.70993819]
[1731261057130,0.01440972,80250.0,80249.0,6.33693819]
[1731261057402,0.01440972,80250.0,80249.0,6.33293819]
[1731261057805,0.01440972,80250.0,80249.0,4.79646319]
[1731261058433,0.00012,80258.0,80249.0,4.79646319]
[1731261058670,6.32227991,80255.0,80254.0,0.029]
[1731261058873,6.32227991,80255.0,80254.0,6.05709085]
[1731261059311,6.29371782,80255.0,80254.0,6.06458905]
[1731261059510,6.18021019,80255.0,80254.0,6.05709085]
[1731261060164,6.18021019,80255.0,80254.0,5.75648885]
[1731261060821,6.18021019,80255.0,80254.0,5.54649185]
[1731261061035,6.18021019,80255.0,80254.0,1.85297985]
[1731261061486,6.16675427,80255.0,80254.0,1.85297985]
[1731261061690,6.16675427,80255.0,80254.0,1.99717985]
[1731261063152,5.23312249,80255.0,80254.0,1.99717985]
[1731261063365,5.05841006,80255.0,80254.0,2.00092895]
[1731261063588,5.05841006,80255.0,80254.0,1.9966992]
[1731261063800,5.05841006,80255.0,80254.0,6.4500102]
[1731261064034,1.01549413,80255.0,80254.0,6.4500102]
[1731261064270,0.00203329,80273.0,80254.0,6.4500102]
[1731261064271,6.24229635,80265.0,80264.0,0.09149104]
[1731261064471,4.97289812,80265.0,80264.0,1.86978144]
[1731261064650,4.97289812,80265.0,80264.0,2.72055144]
[1731261064651,4.96829812,80265.0,80264.0,2.72055144]
[1731261064979,4.20116312,80265.0,80264.0,2.72055144]
[1731261065071,2.32525412,80265.0,80264.0,2.72055144]
[1731261065296,2.32519412,80265.0,80264.0,2.82055144]
[1731261065516,1.82860912,80265.0,80264.0,3.62055144]
[1731261066164,1.57860912,80265.0,80264.0,3.48539546]
[1731261067242,1.57860912,80265.0,80264.0,3.42242377]
[1731261067496,1.57644608,80265.0,80264.0,2.62242377]
[1731261067702,1.57644608,80265.0,80264.0,2.81054771]
[1731261068150,1.57644608,80265.0,80264.0,2.91054771]
[1731261068817,1.57424608,80265.0,80264.0,3.56974271]
[1731261069227,1.57508708,80265.0,80264.0,2.5242407]
[1731261069401,1.57508708,80265.0,80264.0,2.47078836]
[1731261069608,1.57508708,80265.0,80264.0,2.53376005]
[1731261069821,1.32508708,80265.0,80264.0,2.47078836]
[1731261070156,1.32508708,80265.0,80264.0,2.53376005]
[1731261070344,1.12189643,80265.0,80264.0,2.69252939]
[1731261070531,1.03501272,80265.0,80264.0,2.66827566]
[1731261070762,1.00293353,80265.0,80264.0,2.66827566]
[1731261070976,0.89580101,80265.0,80264.0,2.66827566]
[1731261071438,0.89083101,80265.0,80264.0,3.46827566]
[1731261071666,0.87260701,80265.0,80264.0,3.46827566]
[1731261071876,0.35665581,80265.0,80264.0,3.54675966]
[1731261072092,0.15674481,80265.0,80264.0,3.34684866]
[1731261072244,0.00057719,80273.0,80272.0,0.09118394]
[1731261072456,6.00927179,80276.0,80275.0,0.09076725]
[1731261072659,5.78336492,80276.0,80275.0,0.59027415]
[1731261072873,5.65508332,80276.0,80275.0,0.80370515]
[1731261073076,5.64468332,80276.0,80275.0,0.59027415]
[1731261073241,3.91035843,80276.0,80275.0,0.59027415]
[1731261073444,3.81351906,80276.0,80275.0,2.59627415]
[1731261073663,1.53865521,80276.0,80275.0,2.59627415]
[1731261073931,0.18688212,80289.0,80275.0,2.59627415]
[1731261073932,4.69207997,80286.0,80285.0,0.09120408]
[1731261074068,4.68742279,80286.0,80285.0,0.40084274]
[1731261074290,3.45294552,80286.0,80285.0,0.77451274]
[1731261074528,0.57038262,80286.0,80285.0,0.77451274]
[1731261074728,0.18728212,80304.0,80295.0,0.09081774]
[1731261074964,4.43947597,80296.0,80295.0,4.0053564]
[1731261075219,3.47931297,80296.0,80295.0,4.71779066]
[1731261075348,5.08769099,80306.0,80305.0,0.02851935]
[1731261075558,5.02492266,80306.0,80305.0,5.41740355]
[1731261075744,1.67898279,80306.0,80305.0,0.8195014]
[1731261075958,5.79261722,80316.0,80315.0,0.09132646]
[1731261076171,5.79261722,80316.0,80315.0,4.37439512]
[1731261076405,5.79261722,80316.0,80315.0,4.52359512]
[1731261076813,5.79261722,80316.0,80315.0,4.85955951]
[1731261077026,5.77966699,80316.0,80315.0,4.85955951]
[1731261077233,5.52966699,80316.0,80315.0,4.95955951]
[1731261077468,5.52866699,80316.0,80315.0,4.95955951]
[1731261077671,5.52866699,80316.0,80315.0,5.1426212]
[1731261077817,4.95577638,80316.0,80315.0,10.1929992]
[1731261078221,4.95567638,80316.0,80315.0,10.1929992]
[1731261078557,4.95567638,80316.0,80315.0,11.4602292]
[1731261078716,4.95567638,80316.0,80315.0,11.4642292]
[1731261078919,4.95561638,80316.0,80315.0,10.94520312]
[1731261079229,4.89896888,80316.0,80315.0,10.8804791]
[1731261079431,4.89680888,80316.0,80315.0,10.81021622]
[1731261079669,4.89680888,80316.0,80315.0,10.84578572]
[1731261080016,4.89674888,80316.0,80315.0,10.84578572]
[1731261080272,4.88696618,80316.0,80315.0,10.84578572]
[1731261080495,4.8335532,80316.0,80315.0,10.84578572]
[1731261080674,4.26066259,80316.0,80315.0,10.94578572]
[1731261080902,4.26066259,80316.0,80315.0,10.94746572]
[1731261081110,3.26060259,80316.0,80315.0,10.94746572]
[1731261081510,3.24919371,80316.0,80315.0,10.94746572]
[1731261081756,3.24919371,80316.0,80315.0,11.00722991]
[1731261081951,3.24913371,80316.0,80315.0,11.00722991]
[1731261082532,2.99913371,80316.0,80315.0,11.00722991]
[1731261082730,2.96067371,80316.0,80315.0,11.00722991]
[1731261082940,2.95851371,80316.0,80315.0,11.00722991]
[1731261083550,2.95845371,80316.0,80315.0,11.00722991]
[1731261083711,2.95845371,80316.0,80315.0,10.98771056]
[1731261083907,2.95845371,80316.0,80315.0,10.90722991]
[1731261084386,2.92309822,80316.0,80315.0,8.86136891]
[1731261084636,2.92309822,80316.0,80315.0,6.77343441]
[1731261084848,2.92309822,80316.0,80315.0,5.99296622]
[1731261085060,2.92309822,80316.0,80315.0,5.78321022]
[1731261085336,2.92303822,80316.0,80315.0,5.78321022]
[1731261085528,2.91903822,80316.0,80315.0,5.83289022]
[1731261085741,2.87115307,80316.0,80315.0,5.87087339]
[1731261085942,2.86775307,80316.0,80315.0,5.83289022]
[1731261086079,2.82497238,80316.0,80315.0,5.83289022]
[1731261086284,2.82497238,80316.0,80315.0,5.82789022]
[1731261086688,2.82497238,80316.0,80315.0,5.83289022]
[1731261086906,2.82491238,80316.0,80315.0,5.83289022]
[1731261087139,2.82491238,80316.0,80315.0,5.81337087]
[1731261087346,2.82491238,80316.0,80315.0,5.71349822]
[1731261087554,2.82491238,80316.0,80315.0,5.83289022]
[1731261088015,2.80844489,80316.0,80315.0,5.83289022]
[1731261088213,2.75376922,80316.0,80315.0,5.82389022]
[1731261088436,2.73167403,80316.0,80315.0,4.63884646]
[1731261088682,2.71942768,80316.0,80315.0,4.63884646]
[1731261088860,2.6908921,80316.0,80315.0,4.78205309]
[1731261089073,2.66148537,80316.0,80315.0,4.78205309]
[1731261089435,2.66148537,80316.0,80315.0,5.58205309]
[1731261089646,2.4286372,80316.0,80315.0,5.58205309]
[1731261089866,2.4286372,80316.0,80315.0,5.68205309]
[1731261090717,2.39120357,80316.0,80315.0,5.71656459]
[1731261090865,2.39120357,80316.0,80315.0,5.68205309]
[1731261091067,2.37823357,80316.0,80315.0,5.68205309]
[1731261091267,2.37823357,80316.0,80315.0,5.67705309]
[1731261091819,2.37823357,80316.0,80315.0,5.68205309]
[1731261092040,2.37823357,80316.0,80315.0,5.93103668]
[1731261092241,2.37814982,80316.0,80315.0,5.73681728]
[1731261092391,2.37814982,80316.0,80315.0,5.74181728]
[1731261092594,2.37814982,80316.0,80315.0,5.63483728]
[1731261092926,2.37814982,80316.0,80315.0,6.51908346]
[1731261093898,2.3759894,80316.0,80315.0,7.27164765]
[1731261094100,2.3710894,80316.0,80315.0,6.57884765]
[1731261094525,2.3710894,80316.0,80315.0,10.72054865]
[1731261094912,2.3710894,80316.0,80315.0,11.40834865]
[1731261095121,2.3710894,80316.0,80315.0,11.41334865]
[1731261095485,2.3710894,80316.0,80315.0,11.62790298]
[1731261095685,5.88344847,80327.0,80326.0,0.09132924]
[1731261095817,5.84981245,80327.0,80326.0,3.06517264]
[1731261096023,4.60206509,80327.0,80326.0,2.60550164]
[1731261096382,4.59296509,80327.0,80326.0,3.40550164]
[1731261096520,4.34296509,80327.0,80326.0,3.40550164]
[1731261097154,4.24124804,80327.0,80326.0,3.53650164]
[1731261097383,3.77117962,80327.0,80326.0,2.63865699]
[1731261097578,1.91371232,80327.0,80326.0,3.04015434]
[1731261097816,1.59714501,80327.0,80326.0,3.04015434]
[1731261098048,4.66788596,80337.0,80336.0,0.09086596]
[1731261098265,3.79408164,80337.0,80336.0,3.02814435]
[1731261098495,3.33542226,80337.0,80336.0,4.16077435]
[1731261098690,1.57173896,80337.0,80336.0,4.63420435]
[1731261098896,0.83727664,80337.0,80336.0,6.44469135]
[1731261099160,5.67165257,80347.0,80346.0,0.22187099]
[1731261099365,5.67165257,80347.0,80346.0,0.99424938]
[1731261099366,1.68777994,80347.0,80346.0,0.99424938]
[1731261099615,5.51853572,80357.0,80356.0,0.0811959]
[1731261099819,3.23244047,80357.0,80356.0,2.31824766]
[1731261100053,1.3810929,80357.0,80356.0,3.52262766]
[1731261100261,1.0097795,80357.0,80356.0,3.52262766]
[1731261100495,2.9647956,80367.0,80366.0,0.32202645]
[1731261100668,1.2410548,80367.0,80366.0,2.16167821]
[1731261100900,4.5766182,80378.0,80371.0,0.02851935]
[1731261101135,4.4991692,80378.0,80377.0,0.08629905]
[1731261101361,4.41251759,80378.0,80377.0,1.5340689]
[1731261101575,4.41251759,80378.0,80377.0,2.5052489]
[1731261102075,4.40805506,80378.0,80377.0,2.5052489]
[1731261102300,4.40308019,80378.0,80377.0,5.3877569]
[1731261102518,4.40308019,80378.0,80377.0,6.30777384]
[1731261102736,4.40308019,80378.0,80377.0,6.1877569]
[1731261102940,4.3847231,80378.0,80377.0,6.1877569]
[1731261103379,4.3847231,80378.0,80377.0,6.1927569]
[1731261103583,4.3847231,80378.0,80377.0,5.3247189]
[1731261103704,4.3847231,80378.0,80377.0,5.3197189]
[1731261103898,4.3497231,80378.0,80377.0,5.3197189]
[1731261104099,4.33653874,80378.0,80377.0,5.3197189]
[1731261104300,4.33653874,80378.0,80377.0,5.3247189]
[1731261104504,4.32358705,80378.0,80377.0,5.4197189]
[1731261104745,4.31902705,80378.0,80377.0,3.53038051]